Workbook

Sheet CUPOS PROGRAMADOS 2018 (hidden)
J2: encuentros vivenciales
A3: Cod Reg | B3: Regional | C3: TOTAL COBERTURA | D3: Cobertura No Victimas GCB | E3: Cobertura No Victimas GRCB | F3: Cobertura No Victimas GECB | G3: Cobertura Victimas GCB | H3: Cobertura Victimas GRCB | I3: Cobertura Victimas GECB | J3: COSTO CUPO MES DE ENCUENTROS VIVENCIALES No Victimas GCB | K3: COSTO CUPO MES DE ENCUENTROS VIVENCIALES No Victimas GRCB | L3: COSTO CUPO MES DE ENCUENTROS VIVENCIALES No Victimas GECB | M3: COSTO CUPO MES DE ENCUENTROS VIVENCIALES Victimas GCB | N3: COSTO CUPO MES DE ENCUENTROS VIVENCIALES Victimas GRCB | O3: COSTO CUPO MES DE ENCUENTROS VIVENCIALES Victimas GECB
A4: 91 | B4: AMAZONAS | C4: =SUM(D4:I4) -> 1800 | D4: 500 | E4: 0 | F4: 1300 | G4: 0 | H4: 0 | I4: 0 | J4: 40400 | K4: 0 | L4: 67316 | M4: 0 | N4: 0 | O4: 0
A5: 5 | B5: ANTIOQUIA | C5: =SUM(D5:I5) -> 13400 | D5: 6550 | E5: 2100 | F5: 575 | G5: 350 | H5: 100 | I5: 3725 | J5: 40051 | K5: 57922 | L5: 61906 | M5: 40051 | N5: 57922 | O5: 61906
A6: 81 | B6: ARAUCA | C6: 4400 | D6: 2120 | E6: 930 | F6: 800 | G6: 80 | H6: 70 | I6: 400 | J6: 41271 | K6: 61901 | L6: 84187 | M6: 41271 | N6: 61901 | O6: 84187
A7: 8 | B7: ATLÁNTICO | C7: 4100 | D7: 2910 | E7: 200 | F7: 750 | G7: 190 | H7: 0 | I7: 50 | J7: 38403 | K7: 47091 | L7: 47091 | M7: 38403 | N7: 0 | O7: 47091
A8: 11 | B8: BOGOTÁ | C8: 4500 | D8: 3800 | E8: 200 | F8: 500 | G8: 0 | H8: 0 | I8: 0 | J8: 37356 | K8: 47349 | L8: 47349 | M8: 0 | N8: 0 | O8: 0
A9: 13 | B9: BOLÍVAR | C9: 6800 | D9: 3150 | E9: 2500 | F9: 550 | G9: 250 | H9: 100 | I9: 250 | J9: 39709 | K9: 54169 | L9: 51430 | M9: 39709 | N9: 54169 | O9: 51430
A10: 15 | B10: BOYACÁ | C10: 5200 | D10: 3460 | E10: 1350 | F10: 100 | G10: 240 | H10: 50 | I10: 0 | J10: 38065 | K10: 50459 | L10: 55914 | M10: 38065 | N10: 50459 | O10: 0
A11: 17 | B11: CALDAS | C11: 5900 | D11: 2620 | E11: 390 | F11: 1450 | G11: 180 | H11: 10 | I11: 1250 | J11: 37318 | K11: 46025 | L11: 47690 | M11: 37318 | N11: 46025 | O11: 47690
A12: 18 | B12: CAQUETÁ | C12: 4200 | D12: 2750 | E12: 840 | F12: 400 | G12: 150 | H12: 60 | I12: 0 | J12: 38227 | K12: 52339 | L12: 51905 | M12: 38227 | N12: 52339 | O12: 0
A13: 85 | B13: CASANARE | C13: 2500 | D13: 1490 | E13: 380 | F13: 300 | G13: 110 | H13: 20 | I13: 200 | J13: 38435 | K13: 49523 | L13: 69784 | M13: 38435 | N13: 49523 | O13: 69784
A14: 19 | B14: CAUCA | C14: 11550 | D14: 6600 | E14: 300 | F14: 2625 | G14: 400 | H14: 0 | I14: 1625 | J14: 40253 | K14: 66731 | L14: 66731 | M14: 40253 | N14: 0 | O14: 66731
A15: 20 | B15: CESAR | C15: 7100 | D15: 4140 | E15: 760 | F15: 1275 | G15: 260 | H15: 40 | I15: 625 | J15: 39260 | K15: 54097 | L15: 51026 | M15: 39260 | N15: 54097 | O15: 51026
A16: 27 | B16: CHOCÓ | C16: 12500 | D16: 4600 | E16: 1500 | F16: 4000 | G16: 0 | H16: 0 | I16: 2400 | J16: 40366 | K16: 53766 | L16: 63296 | M16: 0 | N16: 0 | O16: 63296
A17: 23 | B17: CÓRDOBA | C17: 6800 | D17: 4350 | E17: 1000 | F17: 550 | G17: 250 | H17: 100 | I17: 550 | J17: 38957 | K17: 53801 | L17: 68955 | M17: 38957 | N17: 53801 | O17: 68955
A18: 25 | B18: CUNDINAMARCA | C18: 3400 | D18: 3125 | E18: 0 | F18: 0 | G18: 275 | H18: 0 | I18: 0 | J18: 39496 | K18: 0 | L18: 0 | M18: 39496 | N18: 0 | O18: 0
A19: 94 | B19: GUAINÍA | C19: 1600 | D19: 380 | E19: 300 | F19: 900 | G19: 20 | H19: 0 | I19: 0 | J19: 38138 | K19: 77598 | L19: 77598 | M19: 38138 | N19: 0 | O19: 0
A20: 95 | B20: GUAVIARE | C20: 2500 | D20: 500 | E20: 500 | F20: 650 | G20: 300 | H20: 400 | I20: 150 | J20: 42150 | K20: 61773 | L20: 74304 | M20: 42150 | N20: 61773 | O20: 74304
A21: 41 | B21: HUILA | C21: 4400 | D21: 2920 | E21: 960 | F21: 300 | G21: 180 | H21: 40 | I21: 0 | J21: 38124 | K21: 47897 | L21: 54309 | M21: 38124 | N21: 47897 | O21: 0
A22: 44 | B22: LA GUAJIRA | C22: 5900 | D22: 2900 | E22: 0 | F22: 3000 | G22: 0 | H22: 0 | I22: 0 | J22: 37641 | K22: 0 | L22: 50352 | M22: 0 | N22: 0 | O22: 0
A23: 47 | B23: MAGDALENA | C23: 9700 | D23: 7440 | E23: 675 | F23: 1175 | G23: 360 | H23: 25 | I23: 25 | J23: 39120 | K23: 57103 | L23: 49628 | M23: 39120 | N23: 57103 | O23: 49628
A24: 50 | B24: META | C24: 4400 | D24: 2275 | E24: 1030 | F24: 325 | G24: 125 | H24: 70 | I24: 575 | J24: 37526 | K24: 45292 | L24: 57658 | M24: 37526 | N24: 45292 | O24: 57658
A25: 52 | B25: NARIÑO | C25: 12100 | D25: 6740 | E25: 1130 | F25: 2900 | G25: 360 | H25: 70 | I25: 900 | J25: 39465 | K25: 55872 | L25: 60549 | M25: 39465 | N25: 55872 | O25: 60549
A26: 54 | B26: NORTE DE SANTANDER | C26: 6700 | D26: 3500 | E26: 1800 | F26: 700 | G26: 300 | H26: 100 | I26: 300 | J26: 38796 | K26: 53382 | L26: 56675 | M26: 38796 | N26: 53382 | O26: 56675
A27: 86 | B27: PUTUMAYO | C27: 5700 | D27: 2300 | E27: 830 | F27: 825 | G27: 200 | H27: 70 | I27: 1475 | J27: 41860 | K27: 62683 | L27: 68059 | M27: 41860 | N27: 62683 | O27: 68059
A28: 63 | B28: QUINDÍO | C28: 4000 | D28: 2750 | E28: 600 | F28: 200 | G28: 150 | H28: 0 | I28: 300 | J28: 38852 | K28: 55676 | L28: 55676 | M28: 38852 | N28: 0 | O28: 55676
A29: 66 | B29: RISARALDA | C29: 4100 | D29: 2180 | E29: 500 | F29: 0 | G29: 120 | H29: 0 | I29: 1300 | J29: 37491 | K29: 50743 | L29: 0 | M29: 37491 | N29: 0 | O29: 50743
A30: 88 | B30: SAN ANDRÉS | C30: 1800 | D30: 900 | E30: 0 | F30: 900 | G30: 0 | H30: 0 | I30: 0 | J30: 40637 | K30: 0 | L30: 55088 | M30: 0 | N30: 0 | O30: 0
A31: 68 | B31: SANTANDER | C31: 4800 | D31: 4160 | E31: 300 | F31: 0 | G31: 240 | H31: 0 | I31: 100 | J31: 39390 | K31: 57428 | L31: 0 | M31: 39390 | N31: 0 | O31: 62674
A32: 70 | B32: SUCRE | C32: 4800 | D32: 3090 | E32: 560 | F32: 400 | G32: 210 | H32: 40 | I32: 500 | J32: 39067 | K32: 49283 | L32: 49847 | M32: 39067 | N32: 49283 | O32: 49847
A33: 73 | B33: TOLIMA | C33: 5800 | D33: 3580 | E33: 925 | F33: 550 | G33: 220 | H33: 75 | I33: 450 | J33: 37143 | K33: 45975 | L33: 51724 | M33: 37143 | N33: 45975 | O33: 51724
A34: 76 | B34: VALLE DEL CAUCA | C34: 9800 | D34: 5000 | E34: 1050 | F34: 475 | G34: 300 | H34: 50 | I34: 2925 | J34: 37862 | K34: 45061 | L34: 51466 | M34: 37862 | N34: 45061 | O34: 51466
A35: 97 | B35: VAUPÉS | C35: 1500 | D35: 400 | E35: 300 | F35: 600 | G35: 0 | H35: 0 | I35: 200 | J35: 39865 | K35: 52294 | L35: 75438 | M35: 0 | N35: 0 | O35: 75438
A36: 99 | B36: VICHADA | C36: 1400 | D36: 470 | E36: 370 | F36: 500 | G36: 30 | H36: 30 | I36: 0 | J36: 40943 | K36: 65680 | L36: 71187 | M36: 40943 | N36: 65680 | O36: 0
B37: TOTAL GCB | C37: =SUM(C4:C36) -> 185150 | D37: 103650 | E37: 24280 | F37: 29575 | G37: 5850 | H37: 1520 | I37: 20275 | J37: =+AVERAGE(J4:J36) -> 39140.51515 | K37: =+AVERAGE(K4:K36) -> 47845.84848 | L37: 54367.81818 | M37: 31980.9697 | N37: 32431.42424 | O37: 41713.24242
C39: ESCENARIO META( COBERTURA 2015)
C40: PROGRAMA | D40: COBERTURA | E40: TIEMPO DE EJECUCION | F40: VALOR ALISTAMIENTO | G40: ENCUENTROS VIVENCIALES | H40: ACTIVIDAD DE CIERRE | I40: TOTAL
C41: RURAL | D41: 10000 | E41: 7 | F41: 3576 | G41: 43605 | H41: 7268 | I41: =+(D41*F41)+(D41*E41*G41)+(D41*H41) -> 3160790000
C42: TRADICIONAL | D42: 5000 | E42: 7 | F42: 3576 | G42: 33075 | H42: 8269 | I42: =+(D42*F42)+(D42*E42*G42)+(D42*H42) -> 1216850000
C43: ETNICO | D43: 6375 | E43: 7 | F43: 3576 | G43: 43605 | H43: 7268 | I43: =+(D43*F43)+(D43*E43*G43)+(D43*H43) -> 2015003625
C44: TOTAL | D44: =SUM(D41:D43) -> 21375 | I44: =SUM(I41:I43) -> 6392643625
D47: VALOR | E47: TIEMPO
C48: VALOR TOTAL Victimas GCB | D48: =+#REF! ->  | E48: =+#REF! -> 
C49: VALOR TOTAL Victimas GRCB | D49: =+#REF! ->  | E49: =+#REF! -> 
C50: SUBTOTAL VICTIMAS | D50: =SUM(D48:D49) -> 
D53: VALOR | E53: TIEMPO
C54: VALOR TOTAL No Victimas GCB | D54: =+#REF! ->  | E54: =+#REF! -> 
C55: VALOR TOTAL No Victimas GRCB | D55: =+#REF! ->  | E55: =+#REF! -> 
C56: SUBTOTAL NO VICTIMAS | D56: =SUM(D54:D55) -> 
C58: TOTAL | D58: =+D50+D56 -> 

Sheet LISTAS (hidden)
E3: Modalidad
C4: Regional | D4: Modalidad | E4: Cobertura No GCB | F4: COSTO CUPO MES DE ENCUENTROS VIVENCIALES GCB | H4: Regional | I4: Modalidad | J4: Cobertura No GRCB | K4: COSTO CUPO MES DE ENCUENTROS VIVENCIALES GRCB | M4: Regional | N4: Modalidad | O4: Cobertura No GECB | P4: COSTO CUPO MES DE ENCUENTROS VIVENCIALES GECB | S4: No. DE ENCUENTROS VIVENCIALES AL MES | W4: EncuentrosContratados | Z4: mes | AA4: Alistamiento | AF4: Generaciones Étnicas con Bienestar | AL4: ZONAS DE CONTRATACIÓN | AM4: ZONA
A5: 91 | B5: =C5&D5 -> AMAZONAS | C5: AMAZONAS | L5: =M5&N5 -> AMAZONASEtnico | M5: AMAZONAS | N5: Etnico | O5: 1500 | P5: 71623 | S5: 1 | W5: Tradicional | X5: 8 | Z5: Enero | AA5: Atención | AB5: 1 | AC5: =+P5/7 -> 10231.85714 | AD5: =+AC5*6.5 -> 66507.07143 | AF5: Programa para la Promoción del Desarrollo de niñas y niños | AL5: AMAZONAS | AM5: 1
A6: 5 | B6: =C6&D6 -> ANTIOQUIA | C6: ANTIOQUIA | L6: =M6&N6 -> ANTIOQUIAEtnico | M6: ANTIOQUIA | N6: Etnico | O6: 5475 | P6: 65867 | S6: 2 | W6: Rural | X6: 12 | Z6: Febrero | AA6: Cierre | AB6: 2 | AL6: ANTIOQUIA | AM6: 1
A7: 81 | B7: ARAUCA | C7: ARAUCA | L7: ARAUCAEtnico | M7: ARAUCA | N7: Etnico | O7: 2400 | P7: 89574 | S7: 3 | W7: Etnico | X7: 12 | Z7: Marzo | AB7: 3 | AL7: ANTIOQUIA | AM7: 2
A8: 8 | B8: ATLÁNTICO | C8: ATLÁNTICO | L8: ATLÁNTICOEtnico | M8: ATLÁNTICO | N8: Etnico | O8: 800 | P8: 50104 | S8: 4 | W8: Tradicional | X8: 8 | Z8: Abril | AB8: 4 | AL8: ANTIOQUIA | AM8: AP
A9: 11 | B9: BOGOTÁ | C9: BOGOTÁ | L9: BOGOTÁEtnico | M9: BOGOTÁ | N9: Etnico | O9: 500 | P9: 50379 | S9: 5 | W9: Rural | X9: 12 | Z9: Mayo | AB9: 5 | AL9: ARAUCA | AM9: 1
A10: 13 | B10: BOLÍVAR | C10: BOLÍVAR | L10: BOLÍVAREtnico | M10: BOLÍVAR | N10: Etnico | O10: 1700 | P10: 54721 | S10: 6 | W10: Etnico | X10: 12 | Z10: Junio | AL10: ARAUCA | AM10: AP
A11: 15 | B11: BOYACÁ | C11: BOYACÁ | L11: BOYACÁEtnico | M11: BOYACÁ | N11: Etnico | O11: 100 | P11: 59492 | S11: 7 | Z11: Julio | AL11: SAN ANDRÉS | AM11: 1
A12: 17 | B12: CALDAS | C12: CALDAS | L12: CALDASEtnico | M12: CALDAS | N12: Etnico | O12: 2700 | P12: 50742 | S12: 8 | Z12: Agosto | AL12: ATLÁNTICO | AM12: 1
A13: 18 | B13: CAQUETÁ | C13: CAQUETÁ | L13: CAQUETÁEtnico | M13: CAQUETÁ | N13: Etnico | O13: 450 | P13: 55227 | S13: 9 | W13: Tradicional | Z13: Septiembre | AL13: ATLÁNTICO | AM13: 2
A14: 85 | B14: CASANARE | C14: CASANARE | L14: CASANAREEtnico | M14: CASANARE | N14: Etnico | O14: 800 | P14: 74250 | S14: 10 | W14: Rural | Z14: Octubre | AL14: BOGOTÁ | AM14: 1
A15: 19 | B15: CAUCA | C15: CAUCA | L15: CAUCAEtnico | M15: CAUCA | N15: Etnico | O15: 5000 | P15: 71001 | S15: 11 | W15: Etnico | Z15: Noviembre | AL15: BOLÍVAR | AM15: 1
A16: 20 | B16: CESAR | C16: CESAR | L16: CESAREtnico | M16: CESAR | N16: Etnico | O16: 2600 | P16: 54291 | S16: 12 | Z16: Diciembre | AL16: BOLÍVAR | AM16: 2
A17: 27 | B17: CHOCÓ | C17: CHOCÓ | L17: CHOCÓEtnico | M17: CHOCÓ | N17: Etnico | O17: 11150 | P17: 67347 | S17: 13 | AL17: BOLÍVAR | AM17: AP
A18: 23 | B18: CÓRDOBA | C18: CÓRDOBA | L18: CÓRDOBAEtnico | M18: CÓRDOBA | N18: Etnico | O18: 4100 | P18: 73368 | AL18: BOYACÁ | AM18: 1
A19: 25 | B19: CUNDINAMARCA | C19: CUNDINAMARCA | L19: CUNDINAMARCAEtnico | M19: CUNDINAMARCA | N19: Etnico | O19: 0 | P19: 0 | AL19: BOYACÁ | AM19: 2
A20: 94 | B20: GUAINÍA | C20: GUAINÍA | L20: GUAINÍAEtnico | M20: GUAINÍA | N20: Etnico | O20: 900 | P20: 82564 | AL20: CALDAS | AM20: 1
A21: 95 | B21: GUAVIARE | C21: GUAVIARE | L21: GUAVIAREEtnico | M21: GUAVIARE | N21: Etnico | O21: 1125 | P21: 79059 | AL21: CAQUETÁ | AM21: 1
A22: 41 | B22: HUILA | C22: HUILA | L22: HUILAEtnico | M22: HUILA | N22: Etnico | O22: 300 | P22: 57784 | AL22: CAQUETÁ | AM22: AP
A23: 44 | B23: LA GUAJIRA | C23: LA GUAJIRA | L23: LA GUAJIRAEtnico | M23: LA GUAJIRA | N23: Etnico | O23: 3150 | P23: 53574 | AL23: CASANARE | AM23: 1
A24: 47 | B24: MAGDALENA | C24: MAGDALENA | L24: MAGDALENAEtnico | M24: MAGDALENA | N24: Etnico | O24: 1700 | P24: 52804 | AL24: CAUCA | AM24: 1
A25: 50 | B25: META | C25: META | L25: METAEtnico | M25: META | N25: Etnico | O25: 1375 | P25: 61348 | AL25: CAUCA | AM25: 2
A26: 52 | B26: NARIÑO | C26: NARIÑO | L26: NARIÑOEtnico | M26: NARIÑO | N26: Etnico | O26: 4600 | P26: 64423 | AL26: CAUCA | AM26: AP
A27: 54 | B27: NORTE DE SANTANDER | C27: NORTE DE SANTANDER | L27: NORTE DE SANTANDEREtnico | M27: NORTE DE SANTANDER | N27: Etnico | O27: 1400 | P27: 60301 | AL27: CESAR | AM27: 1
A28: 86 | B28: PUTUMAYO | C28: PUTUMAYO | L28: PUTUMAYOEtnico | M28: PUTUMAYO | N28: Etnico | O28: 2550 | P28: 72414 | AL28: CESAR | AM28: AP
A29: 63 | B29: QUINDÍO | C29: QUINDÍO | L29: QUINDÍOEtnico | M29: QUINDÍO | N29: Etnico | O29: 450 | P29: 59238 | AL29: CHOCÓ | AM29: 1
A30: 66 | B30: RISARALDA | C30: RISARALDA | L30: RISARALDAEtnico | M30: RISARALDA | N30: Etnico | O30: 1600 | P30: 53991 | AL30: CHOCÓ | AM30: AP
A31: 88 | B31: SAN ANDRÉS | C31: SAN ANDRÉS | L31: SAN ANDRÉSEtnico | M31: SAN ANDRÉS | N31: Etnico | O31: 900 | P31: 58613 | AL31: CÓRDOBA | AM31: 1
A32: 68 | B32: SANTANDER | C32: SANTANDER | L32: SANTANDEREtnico | M32: SANTANDER | N32: Etnico | O32: 400 | P32: 66684 | AL32: CÓRDOBA | AM32: 2
A33: 70 | B33: SUCRE | C33: SUCRE | L33: SUCREEtnico | M33: SUCRE | N33: Etnico | O33: 1200 | P33: 53037 | AL33: CÓRDOBA | AM33: AP
A34: 73 | B34: TOLIMA | C34: TOLIMA | L34: TOLIMAEtnico | M34: TOLIMA | N34: Etnico | O34: 1125 | P34: 55034 | AL34: CUNDINAMARCA | AM34: 1
A35: 76 | B35: VALLE DEL CAUCA | C35: VALLE DEL CAUCA | L35: VALLE DEL CAUCAEtnico | M35: VALLE DEL CAUCA | N35: Etnico | O35: 4450 | P35: 54759 | AL35: GUAINÍA | AM35: 1
A36: 97 | B36: VAUPÉS | C36: VAUPÉS | L36: VAUPÉSEtnico | M36: VAUPÉS | N36: Etnico | O36: 1100 | P36: 80265 | AL36: GUAVIARE | AM36: 1
A37: 99 | B37: VICHADA | C37: VICHADA | L37: VICHADAEtnico | M37: VICHADA | N37: Etnico | O37: 975 | P37: 75742 | AL37: HUILA | AM37: 1
E38: =SUM(E5:E37) -> 0 | F38: =+AVERAGE(F5:F37) ->  | H38: 33472843625 | J38: =SUM(J5:J37) -> 0 | K38: 40432.06061 | O38: =SUM(O5:O37) -> 68575 | P38: =+AVERAGE(P5:P37) -> 61503.63636 | AL38: LA GUAJIRA | AM38: 1
AL39: LA GUAJIRA | AM39: AP
B40: Zona | AL40: MAGDALENA | AM40: 1
B41: 1 | AL41: MAGDALENA | AM41: 2
B42: 2 | AL42: META | AM42: 1
B43: AP | AL43: META | AM43: 2
AL44: NARIÑO | AM44: 1
AL45: NARIÑO | AM45: 2
AL46: NARIÑO | AM46: AP
AL47: NORTE DE SANTANDER | AM47: 1
AL48: NORTE DE SANTANDER | AM48: 2
AL49: NORTE DE SANTANDER | AM49: AP
AL50: PUTUMAYO | AM50: 1
AL51: QUINDÍO | AM51: 1
AL52: RISARALDA | AM52: 1
AL53: SANTANDER | AM53: 1
AL54: SANTANDER | AM54: 2
AL55: SUCRE | AM55: 1
AL56: TOLIMA | AM56: 1
AL57: TOLIMA | AM57: 2
AL58: VALLE DEL CAUCA | AM58: 1
AL59: VALLE DEL CAUCA | AM59: 2
AL60: VAUPÉS | AM60: 1
AL61: VICHADA | AM61: 1

Sheet Costos (hidden)
B2: INSTITUTO COLOMBIANO DE BIENESTAR FAMILIAR Cecilia De la Fuente de Lleras Dirección de Abastecimiento | L2: Clasificación de Información: Clasificada
B4: RESUMEN DE COSTOS POR ZONAS DE CONTRATACIÓN
B5: 1 | C5: 2 | D5: 3 | E5: 4 | F5: 5 | G5: 6 | H5: 7 | I5: 8 | J5: 9 | K5: 10 | L5: 11 | M5: 12
B6: ZONAS DE CONTRATACIÓN | E6: ZONA | F6: META SOCIAL TOTAL | G6: COSTO TOTAL ETAPA 1 | H6: COSTO TOTAL ETAPA 2 | I6: COSTO TOTAL ETAPA 3 | J6: TOTAL POR REGIONAL | K6: COSTO NIÑA O NIÑO FOCALIZADO POR REGIONAL ETAPA 1 | L6: COSTO CUPO POR NIÑO POR MES POR REGIONAL ETAPA 2 | M6: COSTO CUPO POR NIÑO ATENDIDO POR REGIONAL. ETAPA 3
A7: 1 | B7: AMAZONAS_1 | E7: 1 | F7: 800 | G7: 0 | H7: 679610800 | I7: 40604000 | J7: 720214800 | K7: 0 | L7: 154457 | M7: 50755
A8: 2 | B8: ANTIOQUIA_1 | E8: 1 | F8: 3200 | G8: 0 | H8: 2561275212 | I8: 139356800 | J8: 2700632012 | K8: 0 | L8: 145527 | M8: 43549
A9: 3 | B9: ANTIOQUIA_2 | E9: 2 | F9: 3200 | G9: 0 | H9: 2561134406 | I9: 139516800 | J9: 2700651206 | K9: 0 | L9: 145519 | M9: 43599
A10: 4 | B10: ANTIOQUIA_AP | E10: AP | F10: 0 | G10: 0 | H10: 0 | I10: 0 | J10: 0 | K10: 0 | L10: 0 | M10: 0
A11: 5 | B11: ARAUCA_1 | E11: 1 | F11: 1600 | G11: 0 | H11: 1314992801 | I11: 74798400 | J11: 1389791201 | K11: 0 | L11: 149431 | M11: 46749
A12: 6 | B12: ARAUCA_AP | E12: AP | F12: 0 | G12: 0 | H12: 0 | I12: 0 | J12: 0 | K12: 0 | L12: 0 | M12: 0
A13: 7 | B13: SAN ANDRÉS_1 | E13: 1 | F13: 1600 | G13: 0 | H13: 1305180800 | I13: 81948800 | J13: 1387129600 | K13: 0 | L13: 148316 | M13: 51218
A14: 8 | B14: ATLÁNTICO_1 | E14: 1 | F14: 2400 | G14: 0 | H14: 1931041200 | I14: 108352800 | J14: 2039394000 | K14: 0 | L14: 146291 | M14: 45147
A15: 9 | B15: ATLÁNTICO_2 | E15: 2 | F15: 1600 | G15: 0 | H15: 1305383200 | I15: 73329600 | J15: 1378712800 | K15: 0 | L15: 148339 | M15: 45831
A16: 10 | B16: BOGOTÁ_1 | E16: 1 | F16: 1600 | G16: 0 | H16: 1305180800 | I16: 81948800 | J16: 1387129600 | K16: 0 | L16: 148316 | M16: 51218
A17: 11 | B17: BOLÍVAR_1 | E17: 1 | F17: 1600 | G17: 0 | H17: 1312740000 | I17: 72179200 | J17: 1384919200 | K17: 0 | L17: 149175 | M17: 45112
A18: 12 | B18: BOLÍVAR_2 | E18: 2 | F18: 2400 | G18: 0 | H18: 1941970800 | I18: 106053600 | J18: 2048024400 | K18: 0 | L18: 147119 | M18: 44189
A19: 13 | B19: BOLÍVAR_AP | E19: AP | F19: 0 | G19: 0 | H19: 0 | I19: 0 | J19: 0 | K19: 0 | L19: 0 | M19: 0
A20: 14 | B20: BOYACÁ_1 | E20: 1 | F20: 1600 | G20: 0 | H20: 1330956001 | I20: 73980800 | J20: 1404936801 | K20: 0 | L20: 151245 | M20: 46238
A21: 15 | B21: BOYACÁ_2 | E21: 2 | F21: 1600 | G21: 0 | H21: 1307002402 | I21: 71979200 | J21: 1378981602 | K21: 0 | L21: 148523 | M21: 44987
A22: 16 | B22: CALDAS_1 | E22: 1 | F22: 2400 | G22: 0 | H22: 1932915601 | I22: 105888000 | J22: 2038803601 | K22: 0 | L22: 146433 | M22: 44120
A23: 17 | B23: CAQUETÁ_1 | E23: 1 | F23: 1600 | G23: 0 | H23: 1307037600 | I23: 73390400 | J23: 1380428000 | K23: 0 | L23: 148527 | M23: 45869
A24: 18 | B24: CAQUETÁ_AP | E24: AP | F24: 0 | G24: 0 | H24: 0 | I24: 0 | J24: 0 | K24: 0 | L24: 0 | M24: 0
A25: 19 | B25: CASANARE_1 | E25: 1 | F25: 1600 | G25: 0 | H25: 1306624000 | I25: 72096000 | J25: 1378720000 | K25: 0 | L25: 148480 | M25: 45060
A26: 20 | B26: CAUCA_1 | E26: 1 | F26: 2400 | G26: 0 | H26: 1935027600 | I26: 106956000 | J26: 2041983600 | K26: 0 | L26: 146593 | M26: 44565
A27: 21 | B27: CAUCA_2 | E27: 2 | F27: 3200 | G27: 0 | H27: 2562032000 | I27: 145590400 | J27: 2707622400 | K27: 0 | L27: 145570 | M27: 45497
A28: 22 | B28: CAUCA_AP | E28: AP | F28: 0 | G28: 0 | H28: 0 | I28: 0 | J28: 0 | K28: 0 | L28: 0 | M28: 0
A29: 23 | B29: CESAR_1 | E29: 1 | F29: 2400 | G29: 0 | H29: 1933839600 | I29: 106464000 | J29: 2040303600 | K29: 0 | L29: 146503 | M29: 44360
A30: 24 | B30: CESAR_AP | E30: AP | F30: 0 | G30: 0 | H30: 0 | I30: 0 | J30: 0 | K30: 0 | L30: 0 | M30: 0
A31: 25 | B31: CHOCÓ_1 | E31: 1 | F31: 3200 | G31: 0 | H31: 2568579200 | I31: 141321600 | J31: 2709900800 | K31: 0 | L31: 145942 | M31: 44163
A32: 26 | B32: CHOCÓ_AP | E32: AP | F32: 0 | G32: 0 | H32: 0 | I32: 0 | J32: 0 | K32: 0 | L32: 0 | M32: 0
A33: 27 | B33: CÓRDOBA_1 | E33: 1 | F33: 3200 | G33: 0 | H33: 2558652800 | I33: 142963200 | J33: 2701616000 | K33: 0 | L33: 145378 | M33: 44676
A34: 28 | B34: CÓRDOBA_2 | E34: 2 | F34: 1600 | G34: 0 | H34: 1306351200 | I34: 73000000 | J34: 1379351200 | K34: 0 | L34: 148449 | M34: 45625
A35: 29 | B35: CÓRDOBA_AP | E35: AP | F35: 0 | G35: 0 | H35: 0 | I35: 0 | J35: 0 | K35: 0 | L35: 0 | M35: 0
A36: 30 | B36: CUNDINAMARCA_1 | E36: 1 | F36: 2400 | G36: 0 | H36: 1932480000 | I36: 105520800 | J36: 2038000800 | K36: 0 | L36: 146400 | M36: 43967
A37: 31 | B37: GUAINÍA_1 | E37: 1 | F37: 800 | G37: 0 | H37: 679610800 | I37: 40604000 | J37: 720214800 | K37: 0 | L37: 154457 | M37: 50755
A38: 32 | B38: GUAVIARE_1 | E38: 1 | F38: 1600 | G38: 0 | H38: 1308076000 | I38: 75464000 | J38: 1383540000 | K38: 0 | L38: 148645 | M38: 47165
A39: 33 | B39: HUILA_1 | E39: 1 | F39: 3200 | G39: 0 | H39: 2560166400 | I39: 139638400 | J39: 2699804800 | K39: 0 | L39: 145464 | M39: 43637
A40: 34 | B40: LA GUAJIRA_1 | E40: 1 | F40: 2400 | G40: 0 | H40: 1932955200 | I40: 108434400 | J40: 2041389600 | K40: 0 | L40: 146436 | M40: 45181
A41: 35 | B41: LA GUAJIRA_AP | E41: AP | F41: 0 | G41: 0 | H41: 0 | I41: 0 | J41: 0 | K41: 0 | L41: 0 | M41: 0
A42: 36 | B42: MAGDALENA_1 | E42: 1 | F42: 4000 | G42: 0 | H42: 3187954002 | I42: 181928000 | J42: 3369882002 | K42: 0 | L42: 144907 | M42: 45482
A43: 37 | B43: MAGDALENA_2 | E43: 2 | F43: 2400 | G43: 0 | H43: 1934380800 | I43: 107613600 | J43: 2041994400 | K43: 0 | L43: 146544 | M43: 44839
A44: 38 | B44: META_1 | E44: 1 | F44: 1600 | G44: 0 | H44: 1308076003 | I44: 72897600 | J44: 1380973603 | K44: 0 | L44: 148645 | M44: 45561
A45: 39 | B45: META_2 | E45: 2 | F45: 1600 | G45: 0 | H45: 1308058403 | I45: 72096000 | J45: 1380154403 | K45: 0 | L45: 148643 | M45: 45060
A46: 40 | B46: NARIÑO_1 | E46: 1 | F46: 3200 | G46: 0 | H46: 2562630400 | I46: 140521600 | J46: 2703152000 | K46: 0 | L46: 145604 | M46: 43913
A47: 41 | B47: NARIÑO_2 | E47: 2 | F47: 2400 | G47: 0 | H47: 1935582000 | I47: 105972000 | J47: 2041554000 | K47: 0 | L47: 146635 | M47: 44155
A48: 42 | B48: NARIÑO_AP | E48: AP | F48: 0 | G48: 0 | H48: 0 | I48: 0 | J48: 0 | K48: 0 | L48: 0 | M48: 0
A49: 43 | B49: NORTE DE SANTANDER_1 | E49: 1 | F49: 2400 | G49: 0 | H49: 1933707604 | I49: 107488800 | J49: 2041196404 | K49: 0 | L49: 146493 | M49: 44787
A50: 44 | B50: NORTE DE SANTANDER_2 | E50: 2 | F50: 1600 | G50: 0 | H50: 1307134400 | I50: 73513600 | J50: 1380648000 | K50: 0 | L50: 148538 | M50: 45946
A51: 45 | B51: NORTE DE SANTANDER_AP | E51: AP | F51: 0 | G51: 0 | H51: 0 | I51: 0 | J51: 0 | K51: 0 | L51: 0 | M51: 0
A52: 46 | B52: PUTUMAYO_1 | E52: 1 | F52: 2400 | G52: 0 | H52: 1934222400 | I52: 107059200 | J52: 2041281600 | K52: 0 | L52: 146532 | M52: 44608
A53: 47 | B53: QUINDÍO_1 | E53: 1 | F53: 2400 | G53: 0 | H53: 1930909206 | I53: 108763200 | J53: 2039672406 | K53: 0 | L53: 146281 | M53: 45318
A54: 48 | B54: RISARALDA_1 | E54: 1 | F54: 2400 | G54: 0 | H54: 1931516400 | I54: 107203200 | J54: 2038719600 | K54: 0 | L54: 146327 | M54: 44668
A55: 49 | B55: SANTANDER_1 | E55: 1 | F55: 2400 | G55: 0 | H55: 1933628400 | I55: 105828000 | J55: 2039456400 | K55: 0 | L55: 146487 | M55: 44095
A56: 50 | B56: SANTANDER_2 | E56: 2 | F56: 2400 | G56: 0 | H56: 1933562400 | I56: 106216800 | J56: 2039779200 | K56: 0 | L56: 146482 | M56: 44257
A57: 51 | B57: SUCRE_1 | E57: 1 | F57: 2400 | G57: 0 | H57: 1932123600 | I57: 106053600 | J57: 2038177200 | K57: 0 | L57: 146373 | M57: 44189
A58: 52 | B58: TOLIMA_1 | E58: 1 | F58: 1600 | G58: 0 | H58: 1306808803 | I58: 72076800 | J58: 1378885603 | K58: 0 | L58: 148501 | M58: 45048
A59: 53 | B59: TOLIMA_2 | E59: 2 | F59: 1600 | G59: 0 | H59: 1306914406 | I59: 71870400 | J59: 1378784806 | K59: 0 | L59: 148513 | M59: 44919
A60: 54 | B60: VALLE DEL CAUCA_1 | E60: 1 | F60: 2400 | G60: 0 | H60: 1933298400 | I60: 105806400 | J60: 2039104800 | K60: 0 | L60: 146462 | M60: 44086
A61: 55 | B61: VALLE DEL CAUCA_2 | E61: 2 | F61: 1600 | G61: 0 | H61: 1306861600 | I61: 73041600 | J61: 1379903200 | K61: 0 | L61: 148507 | M61: 45651
A62: 56 | B62: VAUPÉS_1 | E62: 1 | F62: 800 | G62: 0 | H62: 695125200 | I62: 38963200 | J62: 734088400 | K62: 0 | L62: 157983 | M62: 48704
A63: 57 | B63: VICHADA_1 | E63: 1 | F63: 800 | G63: 0 | H63: 710318400 | I63: 38880800 | J63: 749199200 | K63: 0 | L63: 156734 | M63: 47185
B64: TOTAL | F64: 97600 | H64: 79013629250 | I64: 4405174400 | J64: 83418803650
B65: Controles | G65: 0 | H65: 0 | I65: 0 | J65: 6.866455078e-05
B67: VALOR TOTAL ATENCIÓN PRIORIZADA | G67: 0 | H67: 0 | I67: 0 | J67: 0
B68: VALOR TOTAL BANCO DE OFERENTES | G68: 0 | H68: 0 | I68: 0 | J68: 0

Sheet Certificación Supervisor
A1: Nombre del Operador:
A2: Numero de contrato :
A3: CERTIFICACION DE COBERTURA (Corresponde al Supervisor) | F3: Mes de Certificación:
A4: =IF(C7="Alistamiento",10,IF(C7="Atención",11,IF(C7="Cierre",12,""))) -> 
A5: Regional:
A6: Zona:
A7: Etapa:
A8: El suscrito supervisor:
A9: Cédula de ciudadanía:
A11: Valor Inicial del Contrato: | C11: Reducciones al contrato: | E11: Adiciones al Contrato: | G11: Valor Total del Contrato: | H11: =B11-D11+F11 -> 0
A12: CERTIFICA:
A13: Mes de Ejecución
A14: Encuentro a realizar * mes | C14: =IF(C5="","",13) -> 
A15: Valor Cupo Mensual según etapa | C15: =IFERROR(VLOOKUP(C5&"_"&C6,costos_mod,A4,0),"") -> 
A16: Valor Unitario Encuentro | C16: =IFERROR(IF(C7="Alistamiento",C15,IF(C7="Atención",C15/13,IF(C7="Cierre",C15,""))),"") -> 
A17: Cupos Contratados
A18: =IF(C7="","",IF(C7="Alistamiento","Cupos Focalizados",IF(C7="Cierre","Participantes actividad",IF(C7="Atención","Niñas y Niños atendidos")))) -> 
A19: Proyección Grupos Contratados | C19: =C17/25 -> 0
A20: Grupos Constituidos
A21: # ENCUENTRO EN EL MES DE OPERACIÓN | D21: Número de niñas y niños que participaron en cada Encuentro | G21: Subtotales por Encuentro
A23: Encuentros Lectura de Contexto
A24: =IF($C$14<1," ",1) -> 1 | D24: 0 | G24: =IFERROR(IF(A24<($C$14+1),$C$16*D24," "),"") -> 
A25: =IF($C$14<2," ",2) -> 2 | D25: 0
A26: =IF($C$14<3," ",3) -> 3 | D26: 0
A27: =IF($C$14<4," ",4) -> 4 | D27: 0
A28: 5 | D28: 0
A29: 6 | D29: 0
A30: Subtotal de asistencias y recurso ejecutado - encuentros de Lectura de Contexto | D30: =SUBTOTAL(9,D24:F29) -> 0 | G30: =SUBTOTAL(9,G24:H29) -> 0
A31: Encuentros de fortalecimiento de habilidades del siglo XXI
A32: =IF($C$14<1," ",1) -> 1 | D32: 0 | G32: =IFERROR(IF(A32<($C$14+1),$C$16*D32," "),"") -> 
A33: =IF($C$14<2," ",2) -> 2 | D33: 0 | G33: =IFERROR(IF(A33<($C$14+1),$C$16*D33," "),"") -> 
A34: =IF($C$14<3," ",3) -> 3 | D34: 0 | G34: =IFERROR(IF(A34<($C$14+1),$C$16*D34," "),"") -> 
A35: 4 | D35: 0 | G35: =IFERROR(IF(A35<($C$14+1),$C$16*D35," "),"") -> 
A36: Subtotal de asistencias y recurso ejecutado - encuentros de fortalecimiento de habilidades del siglo XXI | D36: =SUBTOTAL(9,D32:F35) -> 0 | G36: =SUBTOTAL(9,G32:H35) -> 0
A37: Encuentros de prevención de riesgos específicos
A38: 5 | D38: 0 | G38: =IFERROR(IF(A38<($C$14+1),$C$16*D38," "),"") -> 
A39: 6 | D39: 0 | G39: =IFERROR(IF(A39<($C$14+1),$C$16*D39," "),"") -> 
A40: Subtotal de asistencias y recurso ejecutado - encuentros de prevención de riesgos específicos | D40: =SUBTOTAL(9,D38:F39) -> 0 | G40: =SUBTOTAL(9,G38:H39) -> 0
A41: Encuentros de núcleo de desarrollo
A42: 7 | D42: 0 | G42: =IFERROR(IF(A42<($C$14+1),$C$16*D42," "),"") -> 
A43: 8 | D43: 0
A44: 9 | D44: 0
A45: 10 | D45: 0
A46: 11 | D46: 0
A47: 12 | D47: 0
A48: Subtotal de asistencias y recurso ejecutado - encuentros de núcleo de desarrollo | D48: =SUBTOTAL(9,D42:F47) -> 0 | G48: =SUBTOTAL(9,G42:H47) -> 0
A49: Encuentros Intergeneracionales
A50: 13 | D50: 0 | G50: =IFERROR(IF(A50<($C$14+1),$C$16*D50," "),"") -> 
A51: Subtotal de asistencias y recurso ejecutado - encuentros Intergeneracionales | D51: =SUBTOTAL(9,D50) -> 0 | G51: =SUBTOTAL(9,G50) -> 0
A52: =IF(OR(C7="Alistamiento",C7="Cierre"),"","SUMATORIA ENCUENTROS") -> SUMATORIA ENCUENTROS | D52: =IF(OR(C7="Alistamiento",C7="Cierre"),"",13-(SUM(COUNTIF(D32:F35,0),COUNTIF(D32:F35,""),COUNTIF(D38:F39,0),COUNTIF(D38:F39,""),COUNTIF(D42:F47,0),COUNTIF(D42:F47,""),COUNTIF(D50,0),COUNTIF(D50,""))-24)) -> 0 | E52: VALOR A FACTURAR | H52: =IFERROR(IF(OR(C7="Alistamiento",C7="Cierre"),(C18*C16),IF(C7="Atención",SUM(G30,G36,G40,G48,G51),"")),"") -> 
A53: La presente certificación se expide a los__________días del mes de_________________del año ___________
A55: NOMBRE Y FIRMA DEL SUPERVISOR DEL CONTRATO

Sheet Certificación Operador
A1: Nombre del Operador:
A2: Numero de contrato :
A3: CERTIFICACIÓN DE COBERTURA (Corresponde al Operador) | F3: Mes de Certificación:
A4: =IF(C7="Alistamiento",10,IF(C7="Atención",11,IF(C7="Cierre",12,""))) -> 
A5: Regional:
A6: Zona:
A7: Etapa:
A8: El suscrito representante legal:
A9: Cédula de ciudadanía:
A11: Valor Inicial del Contrato: | C11: Reducciones al contrato: | E11: Adiciones al Contrato: | G11: Valor Total del Contrato: | H11: =B11-D11+F11 -> 0
A12: CERTIFICA:
A13: Mes de Ejecución
A14: Encuentro a realizar * mes | C14: =IF(C5="","",13) -> 
A15: Valor Cupo Mensual según etapa | C15: =IFERROR(VLOOKUP(C5&"_"&C6,costos_mod,A4,0),"") -> 
A16: Valor Unitario Encuentro | C16: =IFERROR(IF(C7="Alistamiento",C15,IF(C7="Atención",C15/13,IF(C7="Cierre",C15,""))),"") -> 
A17: Cupos Contratados
A18: =IF(C7="","",IF(C7="Alistamiento","Cupos Focalizados",IF(C7="Cierre","Participantes actividad",IF(C7="Atención","Niñas y Niños atendidos")))) -> 
A19: Proyección Grupos Contratados | C19: =C17/25 -> 0
A20: Grupos Constituidos
A21: # ENCUENTRO EN EL MES DE OPERACIÓN | D21: Número de niñas y niños que participaron en cada Encuentro | G21: Subtotales por Encuentro
A23: Encuentros Lectura de Contexto
A24: =IF($C$14<1," ",1) -> 1 | D24: 0 | G24: =IFERROR(IF(A24<($C$14+1),$C$16*D24," "),"") -> 
A25: =IF($C$14<2," ",2) -> 2 | D25: 0
A26: =IF($C$14<3," ",3) -> 3 | D26: 0
A27: =IF($C$14<4," ",4) -> 4 | D27: 0
A28: 5 | D28: 0
A29: 6 | D29: 0
A30: Subtotal de asistencias y recurso ejecutado - encuentros de Lectura de Contexto | D30: =SUBTOTAL(9,D24:F29) -> 0 | G30: =SUBTOTAL(9,G24:H29) -> 0
A31: Encuentros de fortalecimiento de habilidades del siglo XXI
A32: =IF($C$14<1," ",1) -> 1 | D32: 0 | G32: =IFERROR(IF(A32<($C$14+1),$C$16*D32," "),"") -> 
A33: =IF($C$14<2," ",2) -> 2 | D33: 0 | G33: =IFERROR(IF(A33<($C$14+1),$C$16*D33," "),"") -> 
A34: =IF($C$14<3," ",3) -> 3 | D34: 0 | G34: =IFERROR(IF(A34<($C$14+1),$C$16*D34," "),"") -> 
A35: 4 | D35: 0 | G35: =IFERROR(IF(A35<($C$14+1),$C$16*D35," "),"") -> 
A36: Subtotal de asistencias y recurso ejecutado - encuentros de fortalecimiento de habilidades del siglo XXI | D36: =SUBTOTAL(9,D32:F35) -> 0 | G36: =SUBTOTAL(9,G32:H35) -> 0
A37: Encuentros de prevención de riesgos específicos
A38: 5 | D38: 0 | G38: =IFERROR(IF(A38<($C$14+1),$C$16*D38," "),"") -> 
A39: 6 | D39: 0 | G39: =IFERROR(IF(A39<($C$14+1),$C$16*D39," "),"") -> 
A40: Subtotal de asistencias y recurso ejecutado - encuentros de prevención de riesgos específicos | D40: =SUBTOTAL(9,D38:F39) -> 0 | G40: =SUBTOTAL(9,G38:H39) -> 0
A41: Encuentros de núcleo de desarrollo
A42: 7 | D42: 0 | G42: =IFERROR(IF(A42<($C$14+1),$C$16*D42," "),"") -> 
A43: 8 | D43: 0
A44: 9 | D44: 0
A45: 10 | D45: 0
A46: 11 | D46: 0
A47: 12 | D47: 0
A48: Subtotal de asistencias y recurso ejecutado - encuentros de núcleo de desarrollo | D48: =SUBTOTAL(9,D42:F47) -> 0 | G48: =SUBTOTAL(9,G42:H47) -> 0
A49: Encuentros Intergeneracionales
A50: 13 | D50: 0 | G50: =IFERROR(IF(A50<($C$14+1),$C$16*D50," "),"") -> 
A51: Subtotal de asistencias y recurso ejecutado - encuentros Intergeneracionales | D51: =SUBTOTAL(9,D50) -> 0 | G51: =SUBTOTAL(9,G50) -> 0
A52: =IF(OR(C7="Alistamiento",C7="Cierre"),"","SUMATORIA ENCUENTROS") -> SUMATORIA ENCUENTROS | D52: =IF(OR(C7="Alistamiento",C7="Cierre"),"",13-(SUM(COUNTIF(D32:F35,0),COUNTIF(D32:F35,""),COUNTIF(D38:F39,0),COUNTIF(D38:F39,""),COUNTIF(D42:F47,0),COUNTIF(D42:F47,""),COUNTIF(D50,0),COUNTIF(D50,""))-24)) -> 0 | E52: VALOR A FACTURAR | H52: =IFERROR(IF(OR(C7="Alistamiento",C7="Cierre"),(C18*C16),IF(C7="Atención",SUM(G30,G36,G40,G48,G51),"")),"") -> 
A53: La presente certificación se expide a los__________días del mes de_________________del año ___________
A55: NOMBRE Y FIRMA DEL REPRESENTANTE LEGAL DEL CONTRATO

Sheet Convenciones (hidden)
A1: CERTIFICADO SUPERVISOR
A2: Mes certificación: Seleccione el mes que corresponda
A3: Regional: Seleccione el nombre de la Regional
A4: Zona: Seleccionar la zona a certificar
A5: Etapa: Seleccione la etapa a certificar
A6: El suscrito supervisor y Cédula de ciudadanía: Registre los datos del supervisor
A7: Valor Inicial del Contrato: Registre el valor Inicial del Contrato
A8: Reducciones al Contrato: Registre las reducciones realizadas al contrato
A9: Adiciones al Contrato: Registre las adiciones realizadas al contrato
A10: Valor Total del Contrato: La matriz calcula el valor total del contrato
A11: Mes de Ejecución: Seleccione el mes de ejecucion
A12: Cupos Contratados: Registre el numero de cupos que se contrataron
A13: Grupos Constituidos : Registre el numero de grupos constituidos
A14: Número de niñas y niños atendidos: Registre el numero de niñas y niños que participaron en cada encuentro vivencial. NO puede ser mayor al numero de cupos contratados según columna A20; en caso de que sea mayor la celda se tornará de COLOR ROJO lo que indica que debe corregir la cifra
A15: Sumatoria Encuentros: La matriz determina automáticamente la SUMATORIA de los encuentros vivenciales realizados
A16: Valor a Facturar: La matriz determina automáticamente el VALOR A FACTURAR en el periodo
A17: fecha que se suscribe la certificación: Registre la fecha de expedición del Certificado
A18: Nombre y Firma: Registre el NOMBRE Y FIRMA del Supervisor del Contrato
A19: Nota 1: Es responsabilidad del contratista la validación de las cifras, así como la verificación y manipulación de las formulas
A21: CERTIFICADO OPERADOR
A22: Mes certificación: Seleccione el mes que corresponda
A23: Regional: Seleccione el nombre de la Regional
A24: Zona: Seleccionar la zona a certificar
A25: Etapa: Seleccione la etapa a certificar
A26: El suscrito supervisor y Cédula de ciudadanía: Registre los datos del supervisor
A27: Mes de Ejecución: Seleccione el mes de ejecucion
A28: Cupos Contratados: Registre el numero de cupos que se contrataron
A29: Grupos Constituidos : Registre el numero de grupos constituidos
A30: Número de niñas y niños atendidos: Registre el numero de niñas y niños que participaron en cada encuentro vivencial. NO puede ser mayor al numero de cupos contratados según columna A20; en caso de que sea mayor la celda se tornará de COLOR ROJO lo que indica que debe corregir la cifra
A31: Sumatoria Encuentros: La matriz determina automáticamente la SUMATORIA de los encuentros vivenciales realizados
A32: Valor a Facturar: La matriz determina automáticamente el VALOR A FACTURAR en el periodo
A33: fecha que se suscribe la certificación: Registre la fecha de expedición del Certificado
A34: Nombre y Firma: Registre el NOMBRE Y FIRMA del Supervisor del Contrato
A35: Nota 1: Es responsabilidad del contratista la validación de las cifras, así como la verificación y manipulación de las formulas
